[Event "WYCC 2018 O14"]
[Site "Halkidiki"]
[Date "2018.10.27"]
[Round "8"]
[White "Marn, Jan"]
[Black "Ognean, Mihnea-Ionut"]
[Result "0-1"]
[ECO "E22"]
[WhiteElo "2125"]
[BlackElo "2291"]
[Annotator "NA"]
[PlyCount "82"]
[EventDate "2018.10.20"]
[EventType "swiss"]
[EventCountry "GRE"]
[SourceTitle "playchess.com"]
[Source "ChessBase"]
[SourceQuality "1"]
[TimeControl "40/5400+30:1800+30"]

1. d4 {[%emt 0:00:00]} Nf6 {[%emt 0:00:12]} 2. c4 {[%emt 0:00:00]} e6 {[%emt 0:00:08]} 3. Nc3 {[%emt 0:00:00]} Bb4 {[%emt 0:00:17]} 4. Qb3 {[%emt 0:00:00]} a5 {[%emt 0:06:51]} 5. a3 {[%emt 0:04:25]} a4 {[%emt 0:09:48]} 6. Qc2 {[%emt 0:12:03]} Bxc3+ 7. bxc3 {[%emt 0:01:29]} O-O {[%emt 0:05:59]} 8. e4 {[%emt 0:02:16]} d6 {[%emt 0:00:22]} 9. Nf3 {[%emt 0:00:52]} e5 {[%emt 0:13:01]} 10. Bd3 {[%emt 0:04:11]} Nc6 {[%emt 0:00:22]} 11. d5 {[%emt 0:00:14]} Nb8 {[%emt 0:17:10]} 12. c5 {[%emt 0:33:25]} Nbd7 {[%emt 0:01:42]} 13. cxd6 {[%emt 0:00:53]} cxd6 {[%emt 0:00:05]} 14. Be3 {[%emt 0:02:35]} Qc7 {[%emt 0:07:49]} 15. O-O {[%emt 0:08:56]} Nc5 {[%emt 0:00:20]} 16. Bxc5 {[%emt 0:05:46]} Qxc5 {[%emt 0:03:43]} 17. Rfb1 {[%emt 0:01:15]} Ra7 {[%emt 0:09:16]} 18. Rb4 {[%emt 0:11:32]} Bd7 {[%emt 0:00:09]} 19. Rc4 {[%emt 0:01:10]} Qa5 {[%emt 0:00:54]} 20. Rb1 {[%emt 0:00:04]} h6 {[%emt 0:04:45]} 21. Nd2 {[%emt 0:03:35]} b5 {[%emt 0:04:21]} 22. Rcb4 {[%emt 0:00:05]} Rc8 {[%emt 0:00:09]} 23. Qb2 {[%emt 0:02:15]} Rac7 {[%emt 0:00:29]} 24. c4 {[%emt 0:00:19]} Qb6 {[%emt 0:08:49]} 25. h3 {[%emt 0:01:09]} Nh5 {[%emt 0:00:34]} 26. cxb5 {[%emt 0:01:46]} Rc3 {[%emt 0:03:20]} 27. Bc4 {[%emt 0:00:09]} Rg3 {[%emt 0:01:10]} 28. Nf1 {[%emt 0:01:23]} Rg6 {[%emt 0:00:28]} 29. Kh2 {[%emt 0:01:03]} f5 {[%emt 0:00:32]} 30. Ne3 {[%emt 0:01:28]} fxe4 {[%emt 0:00:23]} 31. Rxa4 {[%emt 0:00:33]} Nf4 {[%emt 0:00:28]} 32. Ra6 {[%emt 0:00:18]} Qd4 {[%emt 0:00:03]} 33. Qxd4 {[%emt 0:00:42]} exd4 {[%emt 0:00:03]} 34. b6 {[%emt 0:00:04]} dxe3 {[%emt 0:01:00]} 35. b7 {[%emt 0:00:07]} Rxg2+ {[%emt 0:00:03]} 36. Kh1 {[%emt 0:00:05]} exf2 {[%emt 0:00:07]} 37. bxc8=Q+ {[%emt 0:01:36]} Bxc8 {[%emt 0:00:05]} 38. Ra8 {[%emt 0:00:21]} Rg3 {[%emt 0:00:45]} 39. Rxc8+ {[%emt 0:00:21]} Kh7 {[%emt 0:00:03]} 40. Bf1 {[%emt 0:00:00]} e3 {[%emt 0:00:00]} 41. Kh2 {[%emt 0:04:26]} e2 {[%emt 0:01:33]} 0-1

[Event "WYCC 2018 O14"]
[Site "Halkidiki"]
[Date "2018.10.27"]
[Round "8"]
[White "Torngren, Gustav"]
[Black "Tadic, Stefan"]
[Result "1/2-1/2"]
[ECO "D34"]
[WhiteElo "2107"]
[BlackElo "2295"]
[Annotator "NA"]
[PlyCount "71"]
[EventDate "2018.10.20"]
[EventType "swiss"]
[EventCountry "GRE"]
[SourceTitle "playchess.com"]
[Source "ChessBase"]
[SourceQuality "1"]
[TimeControl "40/5400+30:1800+30"]

1. c4 {[%emt 0:00:00]} Nf6 {[%emt 0:00:00]} 2. g3 {[%emt 0:05:01]} c5 {[%emt 0:00:38]} 3. Bg2 {[%emt 0:00:09]} Nc6 {[%emt 0:02:10]} 4. Nc3 {[%emt 0:00:20]} e6 {[%emt 0:01:42]} 5. Nf3 {[%emt 0:08:07]} d5 {[%emt 0:00:45]} 6. cxd5 {[%emt 0:01:22]} exd5 {[%emt 0:00:35]} 7. d4 {[%emt 0:00:19]} Be7 {[%emt 0:00:49]} 8. dxc5 {[%emt 0:00:34]} d4 {[%emt 0:02:22]} 9. Nb1 {[%emt 0:00:47]} Bxc5 {[%emt 0:03:07]} 10. O-O {[%emt 0:00:16]} O-O {[%emt 0:02:03]} 11. a3 {[%emt 0:02:25]} a6 {[%emt 0:13:08]} 12. b4 {[%emt 0:04:48]} Ba7 {[%emt 0:01:26]} 13. Bb2 {[%emt 0:00:21]} Re8 {[%emt 0:11:01]} 14. Nbd2 {[%emt 0:03:00]} Be6 {[%emt 0:19:18]} 15. Rc1 {[%emt 0:06:49]} Qd7 {[%emt 0:05:10]} 16. Ne1 {[%emt 0:01:32]} Bd5 {[%emt 0:02:54]} 17. Ndf3 {[%emt 0:00:32]} Rad8 {[%emt 0:02:44]} 18. Nd3 {[%emt 0:00:26]} Qe7 {[%emt 0:02:15]} 19. Re1 {[%emt 0:00:15]} Ne4 {[%emt 0:06:04]} 20. Qc2 {[%emt 0:03:18]} f6 {[%emt 0:04:31]} 21. Qb1 {[%emt 0:05:09]} Qf7 {[%emt 0:00:36]} 22. Qa1 {[%emt 0:02:12]} Bc4 {[%emt 0:00:31]} 23. Nfe5 {[%emt 0:01:20]} Nxe5 {[%emt 0:02:56]} 24. Bxe4 {[%emt 0:00:18]} Bd5 {[%emt 0:07:26]} 25. Bxd5 {[%emt 0:01:07]} Qxd5 {[%emt 0:00:40]} 26. Nf4 {[%emt 0:00:06]} Qb3 {[%emt 0:01:05]} 27. Qb1 {[%emt 0:14:01]} d3 {[%emt 0:05:39]} 28. Bxe5 {[%emt 0:21:49]} Qxb1 {[%emt 0:00:07]} 29. Rxb1 {[%emt 0:00:02]} d2 {[%emt 0:00:19]} 30. Red1 {[%emt 0:00:01]} fxe5 {[%emt 0:00:22]} 31. Nd3 {[%emt 0:00:01]} Bd4 {[%emt 0:01:21]} 32. Nc5 {[%emt 0:03:30]} e4 {[%emt 0:01:09]} 33. e3 {[%emt 0:00:34]} Bxc5 {[%emt 0:01:02]} 34. bxc5 {[%emt 0:00:02]} Re5 {[%emt 0:00:08]} 35. Rxb7 {[%emt 0:03:48]} Rxc5 {[%emt 0:00:04]} 36. Kf1 {[%emt 0:00:06]} 1/2-1/2

[Event "WYCC 2018 O14"]
[Site "Halkidiki"]
[Date "2018.10.27"]
[Round "8"]
[White "Wang, Alex"]
[Black "Ghazaryan, Raffi"]
[Result "1-0"]
[ECO "B40"]
[WhiteElo "2076"]
[BlackElo "1916"]
[Annotator "NA"]
[PlyCount "144"]
[EventDate "2018.10.20"]
[EventType "swiss"]
[EventCountry "GRE"]
[SourceTitle "playchess.com"]
[Source "ChessBase"]
[SourceQuality "1"]
[TimeControl "40/5400+30:1800+30"]

1. e4 {[%emt 0:00:00]} c5 {[%emt 0:00:00]} 2. Nf3 {[%emt 0:00:00]} e6 {[%emt 0:00:00]} 3. d4 cxd4 {[%emt 0:00:31]} 4. Nxd4 {[%emt 0:00:00]} Nf6 {[%emt 0:00:08]} 5. Nc3 {[%emt 0:00:29]} Nc6 {[%emt 0:00:30]} 6. Ndb5 {[%emt 0:00:19]} Bb4 {[%emt 0:00:43]} 7. a3 {[%emt 0:00:36]} Bxc3+ {[%emt 0:00:29]} 8. Nxc3 {[%emt 0:00:05]} d5 {[%emt 0:01:02]} 9. exd5 {[%emt 0:00:15]} exd5 {[%emt 0:00:04]} 10. Bd3 {[%emt 0:00:06]} O-O {[%emt 0:00:05]} 11. O-O {[%emt 0:00:06]} h6 {[%emt 0:01:34]} 12. h3 {[%emt 0:23:18]} d4 {[%emt 0:01:37]} 13. Ne2 {[%emt 0:01:08]} Re8 {[%emt 0:06:24]} 14. b4 {[%emt 0:05:34]} Qd5 {[%emt 0:16:31]} 15. Bb2 {[%emt 0:11:05]} Bf5 {[%emt 0:17:10]} 16. Bxf5 {[%emt 0:11:19]} Qxf5 {[%emt 0:00:53]} 17. Nxd4 {[%emt 0:01:50]} Nxd4 {[%emt 0:00:14]} 18. Bxd4 {[%emt 0:00:27]} Rad8 {[%emt 0:00:03]} 19. c3 {[%emt 0:08:41]} Nd5 {[%emt 0:15:01]} 20. Re1 {[%emt 0:01:42]} Nf4 {[%emt 0:10:39]} 21. Qf3 {[%emt 0:07:03]} g6 22. Bxa7 Kh7 {[%emt 0:03:09]} 23. Be3 {[%emt 0:04:28]} Nd3 {[%emt 0:00:36]} 24. Qxf5 {[%emt 0:01:56]} gxf5 {[%emt 0:00:01]} 25. Red1 {[%emt 0:00:57]} f4 26. Bd4 {[%emt 0:01:20]} Nb2 {[%emt 0:01:03]} 27. Re1 {[%emt 0:00:11]} Nc4 {[%emt 0:00:04]} 28. a4 {[%emt 0:01:00]} Kg6 {[%emt 0:00:27]} 29. a5 {[%emt 0:01:53]} Kf5 {[%emt 0:00:12]} 30. g4+ {[%emt 0:10:37]} Kg5 {[%emt 0:01:10]} 31. Kg2 {[%emt 0:01:08]} f5 {[%emt 0:00:24]} 32. Bc5 {[%emt 0:03:37]} Ne5 {[%emt 0:02:56]} 33. gxf5 {[%emt 0:00:15]} Kxf5 {[%emt 0:00:04]} 34. Rad1 {[%emt 0:02:26]} Rg8+ {[%emt 0:03:02]} 35. Kh1 {[%emt 0:00:14]} Nd3 {[%emt 0:03:37]} 36. Bb6 {[%emt 0:00:30]} Rd7 {[%emt 0:01:50]} 37. Rg1 {[%emt 0:00:08]} Rc8 {[%emt 0:02:37]} 38. b5 {[%emt 0:03:03]} Rxc3 39. a6 {[%emt 0:00:09]} bxa6 {[%emt 0:05:20]} 40. bxa6 {[%emt 0:00:00]} Rc8 {[%emt 0:00:00]} 41. a7 {[%emt 0:04:36]} Ra8 {[%emt 0:15:31]} 42. Rd2 {[%emt 0:15:45]} Rb7 {[%emt 0:10:49]} 43. Rxd3 {[%emt 0:01:04]} Rxb6 {[%emt 0:00:16]} 44. Rg7 {[%emt 0:02:32]} Ke4 {[%emt 0:05:42]} 45. Ra3 {[%emt 0:00:17]} Rb1+ {[%emt 0:04:35]} 46. Kg2 {[%emt 0:00:20]} Rb5 {[%emt 0:00:34]} 47. Re7+ {[%emt 0:01:22]} Kf5 {[%emt 0:00:31]} 48. Kf3 {[%emt 0:00:21]} Kg5 {[%emt 0:00:51]} 49. Re6 {[%emt 0:03:35]} h5 {[%emt 0:02:27]} 50. Re7 {[%emt 0:01:33]} Kf6 {[%emt 0:01:22]} 51. Rd7 {[%emt 0:00:34]} Kf5 {[%emt 0:00:15]} 52. h4 {[%emt 0:01:27]} Ke6 {[%emt 0:00:42]} 53. Rc7 {[%emt 0:00:13]} Kf5 {[%emt 0:00:12]} 54. Rc6 {[%emt 0:00:15]} Ke5 {[%emt 0:00:49]} 55. Rh6 {[%emt 0:01:53]} Kd4 {[%emt 0:00:14]} 56. Ra4+ {[%emt 0:00:53]} Kc3 {[%emt 0:00:08]} 57. Kxf4 {[%emt 0:00:51]} Kb3 {[%emt 0:00:20]} 58. Raa6 {[%emt 0:00:31]} Kc4 {[%emt 0:00:26]} 59. Rhg6 {[%emt 0:00:40]} Kd3 {[%emt 0:00:18]} 60. Rg5 {[%emt 0:00:54]} Rb7 {[%emt 0:00:15]} 61. Rxh5 {[%emt 0:00:34]} Raxa7 {[%emt 0:00:30]} 62. Rxa7 {[%emt 0:00:03]} Rxa7 {[%emt 0:00:04]} 63. Re5 {[%emt 0:00:28]} Kd4 {[%emt 0:00:18]} 64. h5 {[%emt 0:00:37]} Rh7 {[%emt 0:00:11]} 65. Rf5 {[%emt 0:00:12]} Kc4 {[%emt 0:00:11]} 66. Kg5 {[%emt 0:00:14]} Kd4 {[%emt 0:00:07]} 67. Kg6 {[%emt 0:00:04]} Rh8 {[%emt 0:00:08]} 68. Kg7 {[%emt 0:00:22]} Rd8 {[%emt 0:00:08]} 69. h6 {[%emt 0:00:04]} Ke4 {[%emt 0:00:03]} 70. Rf8 {[%emt 0:00:18]} Rd1 {[%emt 0:00:14]} 71. h7 {[%emt 0:00:05]} Rg1+ {[%emt 0:00:03]} 72. Kf7 Kd5 1-0

[Event "WYCC 2018 O14"]
[Site "Halkidiki"]
[Date "2018.10.27"]
[Round "8"]
[White "Runets, Ivan"]
[Black "Vujovic, Savo"]
[Result "0-1"]
[ECO "D02"]
[WhiteElo "2047"]
[BlackElo "1781"]
[Annotator "NA"]
[PlyCount "128"]
[EventDate "2018.10.20"]
[EventType "swiss"]
[EventCountry "GRE"]
[SourceTitle "playchess.com"]
[Source "ChessBase"]
[SourceQuality "1"]
[TimeControl "40/5400+30:1800+30"]

1. d4 {[%emt 0:00:54]} d5 {[%emt 0:00:00]} 2. Nf3 {[%emt 0:00:10]} Nf6 {[%emt 0:00:00]} 3. Bf4 {[%emt 0:00:06]} c5 {[%emt 0:00:02]} 4. c3 {[%emt 0:00:25]} Nc6 {[%emt 0:00:04]} 5. e3 {[%emt 0:00:06]} Qb6 {[%emt 0:00:06]} 6. Qb3 {[%emt 0:01:57]} c4 {[%emt 0:01:24]} 7. Qc2 {[%emt 0:00:42]} Bf5 {[%emt 0:00:20]} 8. Qc1 {[%emt 0:00:03]} Nh5 {[%emt 0:01:02]} 9. Bg3 {[%emt 0:04:26]} e6 {[%emt 0:03:44]} 10. Nbd2 {[%emt 0:01:02]} Nxg3 {[%emt 0:01:38]} 11. hxg3 {[%emt 0:00:07]} Qc7 {[%emt 0:00:57]} 12. Be2 {[%emt 0:11:01]} h6 {[%emt 0:04:11]} 13. Bd1 {[%emt 0:17:04]} Bd6 {[%emt 0:13:48]} 14. Bc2 {[%emt 0:05:04]} Bxc2 {[%emt 0:04:19]} 15. Qxc2 {[%emt 0:00:20]} b5 {[%emt 0:00:34]} 16. e4 {[%emt 0:12:53]} O-O {[%emt 0:20:14]} 17. e5 {[%emt 0:07:07]} Be7 {[%emt 0:01:35]} 18. g4 {[%emt 0:00:23]} Qd8 {[%emt 0:00:17]} 19. Rh5 {[%emt 0:13:10]} f5 {[%emt 0:02:48]} 20. gxf5 {[%emt 0:01:03]} exf5 {[%emt 0:00:41]} 21. Rxf5 {[%emt 0:00:45]} Qd7 {[%emt 0:00:08]} 22. Rxf8+ {[%emt 0:00:27]} Rxf8 {[%emt 0:00:18]} 23. Kf1 {[%emt 0:03:32]} Nd8 {[%emt 0:04:17]} 24. Kg1 {[%emt 0:00:34]} Qg4 {[%emt 0:01:18]} 25. Re1 {[%emt 0:04:51]} Ne6 {[%emt 0:00:26]} 26. Nh2 {[%emt 0:00:35]} Qh5 {[%emt 0:01:07]} 27. g3 {[%emt 0:05:41]} Rxf2 {[%emt 0:08:36]} 28. Kxf2 {[%emt 0:01:18]} Qxh2+ {[%emt 0:00:05]} 29. Kf1 {[%emt 0:01:23]} Ng5 {[%emt 0:00:21]} 30. Qf5 {[%emt 0:06:34]} Qxd2 {[%emt 0:01:13]} 31. Qf2 {[%emt 0:00:39]} Qd3+ {[%emt 0:02:17]} 32. Kg2 {[%emt 0:00:14]} Ne4 {[%emt 0:00:56]} 33. Qf3 {[%emt 0:01:07]} Qxf3+ {[%emt 0:00:27]} 34. Kxf3 {[%emt 0:00:05]} Kf7 {[%emt 0:00:44]} 35. a3 {[%emt 0:00:33]} h5 {[%emt 0:01:25]} 36. Re2 {[%emt 0:00:58]} a5 {[%emt 0:05:34]} 37. Rc2 {[%emt 0:00:30]} g5 {[%emt 0:03:53]} 38. g4 {[%emt 0:00:30]} h4 {[%emt 0:00:19]} 39. Rc1 {[%emt 0:00:27]} Ke6 {[%emt 0:03:35]} 40. Rc2 {[%emt 0:00:00]} Bf8 {[%emt 0:00:00]} 41. Ke2 {[%emt 0:06:15]} b4 {[%emt 0:17:41]} 42. axb4 {[%emt 0:13:53]} axb4 {[%emt 0:00:10]} 43. cxb4 {[%emt 0:00:03]} Bxb4 {[%emt 0:00:11]} 44. Rc1 {[%emt 0:00:26]} c3 {[%emt 0:01:38]} 45. bxc3 {[%emt 0:04:50]} Bxc3 {[%emt 0:00:06]} 46. Rd1 {[%emt 0:00:38]} h3 {[%emt 0:02:50]} 47. Kf3 {[%emt 0:03:44]} h2 {[%emt 0:00:07]} 48. Rh1 {[%emt 0:01:16]} Bxd4 {[%emt 0:00:15]} 49. Rxh2 {[%emt 0:00:04]} Kxe5 {[%emt 0:00:33]} 50. Rh8 {[%emt 0:01:19]} Bc3 {[%emt 0:03:49]} 51. Re8+ {[%emt 0:01:19]} Kd4 {[%emt 0:00:07]} 52. Rd8 {[%emt 0:00:31]} Bd2 {[%emt 0:00:20]} 53. Ra8 {[%emt 0:00:18]} Kd3 {[%emt 0:00:41]} 54. Re8 {[%emt 0:01:25]} Nc3 {[%emt 0:00:16]} 55. Rd8 {[%emt 0:00:19]} d4 {[%emt 0:00:06]} 56. Rd7 {[%emt 0:00:04]} Be3 {[%emt 0:00:55]} 57. Rh7 {[%emt 0:00:34]} Kc2 {[%emt 0:00:44]} 58. Rd7 {[%emt 0:01:36]} Bg1 {[%emt 0:01:32]} 59. Kg2 {[%emt 0:00:36]} d3 {[%emt 0:00:53]} 60. Kxg1 {[%emt 0:00:30]} d2 {[%emt 0:00:08]} 61. Kf2 {[%emt 0:00:10]} d1=Q {[%emt 0:00:13]} 62. Rxd1 {[%emt 0:00:07]} Kxd1 {[%emt 0:00:13]} 63. Ke3 {[%emt 0:01:44]} Ne2 {[%emt 0:00:13]} 64. Kd3 {[%emt 0:00:34]} Nf4+ {[%emt 0:00:11]} 0-1

[Event "WYCC 2018 O14"]
[Site "Halkidiki"]
[Date "2018.10.27"]
[Round "8"]
[White "Karadzhov, Ivan"]
[Black "Cohen Revivo, Shoham"]
[Result "1/2-1/2"]
[ECO "A04"]
[WhiteElo "2040"]
[BlackElo "2289"]
[Annotator "NA"]
[PlyCount "144"]
[EventDate "2018.10.20"]
[EventType "swiss"]
[EventCountry "GRE"]
[SourceTitle "playchess.com"]
[Source "ChessBase"]
[SourceQuality "1"]
[TimeControl "40/5400+30:1800+30"]

1. Nf3 {[%emt 0:00:00]} e6 {[%emt 0:00:06]} 2. g3 {[%emt 0:00:20]} b6 {[%emt 0:04:05]} 3. Bg2 {[%emt 0:00:25]} Bb7 {[%emt 0:00:08]} 4. O-O {[%emt 0:00:40]} f5 {[%emt 0:00:08]} 5. d3 {[%emt 0:00:50]} Nf6 {[%emt 0:00:12]} 6. Nbd2 {[%emt 0:03:14]} g6 {[%emt 0:01:07]} 7. Re1 {[%emt 0:02:01]} Bg7 {[%emt 0:00:43]} 8. e4 {[%emt 0:01:31]} fxe4 {[%emt 0:00:25]} 9. dxe4 {[%emt 0:00:31]} O-O {[%emt 0:08:28]} 10. e5 {[%emt 0:05:42]} Ng4 {[%emt 0:01:26]} 11. h3 {[%emt 0:03:36]} Nh6 {[%emt 0:00:47]} 12. Ne4 {[%emt 0:03:45]} Nf7 {[%emt 0:04:00]} 13. Neg5 {[%emt 0:16:22]} Nxg5 {[%emt 0:15:33]} 14. Nxg5 {[%emt 0:04:30]} Bxg2 {[%emt 0:01:05]} 15. Kxg2 {[%emt 0:00:07]} Nc6 {[%emt 0:00:38]} 16. f4 {[%emt 0:01:18]} Qe7 {[%emt 0:06:03]} 17. c3 {[%emt 0:02:41]} Rad8 {[%emt 0:03:00]} 18. Qe2 {[%emt 0:02:29]} h6 {[%emt 0:01:38]} 19. Nf3 {[%emt 0:03:11]} Qf7 {[%emt 0:01:29]} 20. Be3 {[%emt 0:05:30]} Ne7 {[%emt 0:00:50]} 21. Rad1 {[%emt 0:00:58]} Nf5 {[%emt 0:05:13]} 22. Bc1 {[%emt 0:01:50]} Rfe8 {[%emt 0:05:33]} 23. g4 {[%emt 0:04:29]} Ne7 {[%emt 0:00:42]} 24. Qe4 {[%emt 0:03:47]} Rf8 {[%emt 0:03:55]} 25. c4 {[%emt 0:02:55]} Nc6 {[%emt 0:07:18]} 26. h4 {[%emt 0:04:21]} Ne7 {[%emt 0:05:26]} 27. Re2 {[%emt 0:12:30]} Qe8 {[%emt 0:05:18]} 28. Rh1 {[%emt 0:04:31]} d5 {[%emt 0:05:02]} 29. exd6 {[%emt 0:00:49]} Rxd6 {[%emt 0:00:02]} 30. h5 {[%emt 0:01:37]} c5 {[%emt 0:04:58]} 31. hxg6 {[%emt 0:03:10]} Qxg6 {[%emt 0:00:13]} 32. Qxg6 {[%emt 0:00:31]} Nxg6 {[%emt 0:00:02]} 33. Kg3 {[%emt 0:00:58]} Rd3 {[%emt 0:04:08]} 34. Rf1 {[%emt 0:02:54]} Kf7 {[%emt 0:03:37]} 35. Kg2 {[%emt 0:01:02]} Rfd8 {[%emt 0:01:32]} 36. f5 {[%emt 0:01:04]} exf5 {[%emt 0:00:30]} 37. gxf5 {[%emt 0:00:11]} Ne7 {[%emt 0:01:52]} 38. f6 {[%emt 0:00:36]} Bxf6 {[%emt 0:01:08]} 39. Ne5+ {[%emt 0:00:13]} Kg7 {[%emt 0:00:07]} 40. Nxd3 {[%emt 0:00:00]} Rxd3 {[%emt 0:00:00]} 41. Bxh6+ {[%emt 0:01:40]} Kg6 {[%emt 0:00:30]} 42. Bc1 {[%emt 0:04:04]} Nf5 {[%emt 0:05:03]} 43. Ref2 {[%emt 0:03:05]} Nh4+ {[%emt 0:04:04]} 44. Kh1 {[%emt 0:08:11]} Be5 {[%emt 0:10:42]} 45. Bf4 {[%emt 0:02:59]} Bd4 {[%emt 0:00:09]} 46. Rd2 {[%emt 0:01:54]} Rxd2 {[%emt 0:03:34]} 47. Bxd2 {[%emt 0:00:08]} Bxb2 {[%emt 0:00:06]} 48. Bf4 {[%emt 0:01:53]} Nf5 {[%emt 0:02:31]} 49. Kg2 {[%emt 0:01:22]} Bd4 {[%emt 0:01:37]} 50. Kf3 {[%emt 0:00:46]} Kf6 {[%emt 0:02:26]} 51. Ke4 {[%emt 0:01:04]} Ke6 {[%emt 0:00:58]} 52. Rf3 {[%emt 0:02:24]} Ne7 {[%emt 0:02:04]} 53. Rh3 {[%emt 0:01:10]} Kd7 {[%emt 0:02:32]} 54. Rh7 {[%emt 0:01:01]} Ke6 {[%emt 0:00:10]} 55. a4 {[%emt 0:02:23]} Bc3 {[%emt 0:00:53]} 56. Bg5 {[%emt 0:02:03]} Nc6 {[%emt 0:00:28]} 57. Rc7 {[%emt 0:01:25]} Kd6 {[%emt 0:00:49]} 58. Bf4+ {[%emt 0:00:18]} Be5 {[%emt 0:00:04]} 59. Rxc6+ {[%emt 0:01:01]} Kxc6 {[%emt 0:00:02]} 60. Bxe5 a6 61. Bc3 {[%emt 0:01:59]} b5 {[%emt 0:00:07]} 62. a5 {[%emt 0:00:30]} bxc4 {[%emt 0:00:20]} 63. Ke5 {[%emt 0:00:22]} Kc7 {[%emt 0:00:54]} 64. Kd5 {[%emt 0:00:25]} Kb7 {[%emt 0:00:11]} 65. Kxc5 {[%emt 0:00:18]} Kc7 {[%emt 0:00:18]} 66. Kxc4 {[%emt 0:00:17]} Kb7 {[%emt 0:00:29]} 67. Kc5 {[%emt 0:00:07]} Ka7 {[%emt 0:00:19]} 68. Kc6 {[%emt 0:00:05]} Ka8 {[%emt 0:00:10]} 69. Kb6 {[%emt 0:00:13]} Kb8 {[%emt 0:00:01]} 70. Kxa6 {[%emt 0:00:10]} Ka8 {[%emt 0:00:07]} 71. Kb6 {[%emt 0:00:06]} Kb8 {[%emt 0:00:01]} 72. a6 {[%emt 0:00:08]} Ka8 {[%emt 0:00:05]} 1/2-1/2

[Event "WYCC 2018 O14"]
[Site "Halkidiki"]
[Date "2018.10.27"]
[Round "8"]
[White "Kasioumis, Vasilios"]
[Black "Gombocz, Ferenc Jr."]
[Result "1/2-1/2"]
[ECO "C50"]
[WhiteElo "2038"]
[BlackElo "2271"]
[Annotator "NA"]
[PlyCount "134"]
[EventDate "2018.10.20"]
[EventType "swiss"]
[EventCountry "GRE"]
[SourceTitle "playchess.com"]
[Source "ChessBase"]
[SourceQuality "1"]
[TimeControl "40/5400+30:1800+30"]

1. e4 {[%emt 0:00:00]} e5 {[%emt 0:00:00]} 2. Nf3 {[%emt 0:00:00]} Nc6 {[%emt 0:00:00]} 3. Bc4 {[%emt 0:00:00]} d6 {[%emt 0:00:02]} 4. d4 {[%emt 0:04:11]} exd4 {[%emt 0:00:24]} 5. Nxd4 {[%emt 0:00:18]} g6 {[%emt 0:00:09]} 6. Nc3 {[%emt 0:07:37]} Bg7 {[%emt 0:00:17]} 7. Be3 {[%emt 0:00:09]} Nf6 {[%emt 0:01:11]} 8. f3 {[%emt 0:01:25]} O-O {[%emt 0:03:20]} 9. Qd2 {[%emt 0:04:04]} Re8 {[%emt 0:01:33]} 10. O-O-O {[%emt 0:03:59]} Ne5 {[%emt 0:00:37]} 11. Bb3 {[%emt 0:02:52]} a6 {[%emt 0:00:11]} 12. a3 {[%emt 0:04:20]} b5 {[%emt 0:10:55]} 13. Bg5 {[%emt 0:11:58]} Qd7 {[%emt 0:17:05]} 14. Qf4 {[%emt 0:09:56]} Nh5 {[%emt 0:00:39]} 15. Qe3 {[%emt 0:00:20]} c5 {[%emt 0:05:01]} 16. Nde2 {[%emt 0:00:18]} c4 {[%emt 0:00:22]} 17. Ba2 {[%emt 0:00:38]} Rb8 {[%emt 0:11:39]} 18. g4 {[%emt 0:07:00]} Nf6 {[%emt 0:00:37]} 19. Qf4 {[%emt 0:02:27]} b4 {[%emt 0:06:35]} 20. axb4 {[%emt 0:02:08]} h6 {[%emt 0:00:51]} 21. Bxf6 {[%emt 0:04:19]} g5 {[%emt 0:01:29]} 22. Qe3 {[%emt 0:04:15]} Bxf6 {[%emt 0:00:36]} 23. Nd5 {[%emt 0:00:12]} Bg7 {[%emt 0:01:13]} 24. h4 {[%emt 0:01:04]} Bb7 {[%emt 0:03:11]} 25. Nec3 {[%emt 0:01:41]} Bxd5 {[%emt 0:02:18]} 26. Nxd5 {[%emt 0:00:07]} Qa4 {[%emt 0:01:10]} 27. Kb1 {[%emt 0:04:54]} a5 {[%emt 0:15:06]} 28. hxg5 {[%emt 0:07:37]} axb4 {[%emt 0:00:44]} 29. gxh6 {[%emt 0:03:41]} b3 {[%emt 0:00:36]} 30. cxb3 {[%emt 0:04:51]} cxb3 {[%emt 0:00:16]} 31. hxg7 {[%emt 0:00:35]} Qxa2+ {[%emt 0:01:46]} 32. Kc1 {[%emt 0:00:04]} Rbc8+ {[%emt 0:02:05]} 33. Nc3 {[%emt 0:00:09]} Qa1+ {[%emt 0:01:59]} 34. Kd2 {[%emt 0:00:07]} Nc4+ {[%emt 0:00:24]} 35. Kd3 {[%emt 0:01:00]} Qxd1+ {[%emt 0:05:20]} 36. Nxd1 {[%emt 0:01:36]} Nxe3 {[%emt 0:00:08]} 37. Nxe3 {[%emt 0:00:04]} Kxg7 {[%emt 0:01:03]} 38. Nf5+ {[%emt 0:00:25]} Kf6 {[%emt 0:01:29]} 39. Rh6+ {[%emt 0:02:22]} Kg5 {[%emt 0:02:06]} 40. Rh5+ {[%emt 0:00:00]} Kf4 {[%emt 0:00:00]} 41. Nxd6 {[%emt 0:06:10]} Red8 {[%emt 0:11:55]} 42. Rd5 {[%emt 0:00:06]} Kxf3 {[%emt 0:09:46]} 43. Nxc8 {[%emt 0:01:54]} Rxc8 {[%emt 0:00:05]} 44. Rb5 {[%emt 0:03:01]} Rd8+ {[%emt 0:02:04]} 45. Kc3 {[%emt 0:00:30]} Kxe4 {[%emt 0:00:46]} 46. Kxb3 {[%emt 0:00:07]} Rg8 {[%emt 0:02:44]} 47. Rf5 {[%emt 0:05:20]} Rxg4 {[%emt 0:01:47]} 48. Rxf7 {[%emt 0:00:07]} Kd5 {[%emt 0:00:05]} 49. Rc7 {[%emt 0:00:02]} Kd6 {[%emt 0:00:06]} 50. Rc1 {[%emt 0:00:05]} Rg8 {[%emt 0:00:07]} 51. Rc4 {[%emt 0:00:30]} Rb8+ {[%emt 0:00:37]} 52. Kc3 {[%emt 0:00:06]} Rb6 {[%emt 0:00:18]} 53. b3 {[%emt 0:00:50]} Rb7 {[%emt 0:00:23]} 54. Kb2 {[%emt 0:00:55]} Rb8 {[%emt 0:02:17]} 55. Ka3 {[%emt 0:00:14]} Ra8+ {[%emt 0:00:22]} 56. Ra4 {[%emt 0:00:08]} Rb8 {[%emt 0:00:05]} 57. Rc4 {[%emt 0:00:09]} Ra8+ {[%emt 0:00:04]} 58. Kb4 {[%emt 0:00:16]} Rb8+ {[%emt 0:00:06]} 59. Kc3 {[%emt 0:00:11]} Rb6 {[%emt 0:01:13]} 60. Rc8 {[%emt 0:00:08]} Kd7 {[%emt 0:00:30]} 61. Rc5 {[%emt 0:00:38]} Kd6 {[%emt 0:00:14]} 62. Rh5 {[%emt 0:00:04]} Kc7 {[%emt 0:01:21]} 63. Kc4 {[%emt 0:00:52]} Rg6 {[%emt 0:00:14]} 64. Kb5 {[%emt 0:00:09]} Rb6+ {[%emt 0:00:42]} 65. Kc4 {[%emt 0:00:27]} Rc6+ {[%emt 0:01:50]} 66. Kb4 {[%emt 0:00:06]} Rb6+ {[%emt 0:00:08]} 67. Rb5 {[%emt 0:00:14]} Kc6 {[%emt 0:00:34]} 1/2-1/2